fUSD/lending_fUSD_20251204
["ID","MTS","AMOUNT","RATE_DAILY","PERIOD"]
[396246586,1764874240392,-2000.0,0.00017,2]
[396246588,1764874240402,-4084.913178,0.00017,2]
[396246590,1764874240411,-4084.913178,0.00017,2]
[396246592,1764874240420,-4084.913178,0.00017,2]
[396246594,1764874240430,-4084.913178,0.00017,2]
[396246596,1764874240440,-151.0,0.00017,2]
[396246598,1764874240450,-251.625489,0.00017,2]
[396246600,1764874240459,-1065.076229,0.00017,2]
[396246602,1764874240468,-1065.076229,0.00017,2]
[396246604,1764874240477,-151.0,0.00017,2]
[396246606,1764874240486,-1065.076229,0.00017,2]
[396246608,1764874240495,-151.0,0.00017,2]
[396246610,1764874240503,-1065.076229,0.00017,2]
[396246612,1764874240512,-185.04,0.00017097,2]
[396246614,1764874240522,-510.0,0.00017119,2]
[396246616,1764874240531,-150.0,0.00017125,2]
[396246618,1764874240540,-4566.66,0.0001725,2]
[396246620,1764874240549,-250.0,0.0001749,2]
[396246622,1764874240559,-8402.00564156,0.00017678,2]
[396246624,1764874240568,-2563.22685364,0.00017685,2]
[396246626,1764874240577,-153.62656337,0.000179,2]
[396246628,1764874240587,-250.0,0.00017919,2]
[396246630,1764874240596,-151.0,0.00017997,2]
[396246632,1764874240605,-151.0,0.00017997,2]
[396246634,1764874240622,-151.0,0.00017997,2]
[396246636,1764874240631,-151.0,0.00017997,2]
[396246638,1764874240640,-918580.0000003,0.00018,2]
[396246640,1764874240649,-151.0,0.00018,2]
[396246642,1764874240658,-4084.913178,0.00018,2]
[396246644,1764874240668,-4084.913178,0.00018,2]
[396246646,1764874240677,-4084.913178,0.00018,2]
[396246647,1764874240686,-4084.913178,0.00018,2]
[396246648,1764874240695,-151.0,0.00018,2]
[396246649,1764874240704,-1065.076229,0.00018,2]
[396246650,1764874240712,-1065.076229,0.00018,2]
[396246651,1764874240721,-151.0,0.00018,2]
[396246652,1764874240729,-1065.076229,0.00018,2]
[396246653,1764874240738,-151.0,0.00018,2]
[396246654,1764874240747,-1065.076229,0.00018,2]
[396246655,1764874240757,-151.0,0.00018,2]
[396246656,1764874240767,-151.0,0.00018,2]
[396246657,1764874240775,-151.0,0.00018,2]
[396246658,1764874240784,-151.0,0.00018,2]
[396246659,1764874240793,-188.11,0.00018,2]
[396246660,1764874240803,-228.0,0.00018076,2]
[396246661,1764874240812,-200.0,0.00018081,2]
[396246662,1764874240820,-1097.0,0.00018146,2]
[396246663,1764874240829,-1852.42,0.00018187,2]
[396246664,1764874240838,-159.04,0.00018425,2]
[396246665,1764874240847,-162.52615634,0.00018481,2]
[396246666,1764874240856,-150.84,0.000188,2]
[396246667,1764874240865,-480.06109419,0.00018906,2]
[396246668,1764874240873,-34377.80779875,0.00019,2]
[396246669,1764874240882,-397.74114239,0.00019,2]
[396246670,1764874240891,-1097.0,0.00019101,2]
[396246671,1764874240899,-159.698734,0.00019178,2]
[396246672,1764874240908,-167.436766,0.00019178,2]
[396246673,1764874240917,-151.0,0.00019178,2]
[396246674,1764874240927,-151.0,0.00019178,2]
[396246676,1764874240936,-182.053965,0.00019178,2]
[396246678,1764874240946,-151.0,0.00019178,2]
[396246680,1764874240954,-151.0,0.00019178,2]
[396246682,1764874240963,-151.0,0.00019178,2]
[396246684,1764874240972,-151.0,0.00019178,2]
[396246686,1764874240982,-156.511989,0.00019178,2]
[396246688,1764874240991,-171.178865,0.00019178,2]
[396246690,1764874240999,-151.0,0.00019178,2]
[396246692,1764874241009,-247.679944,0.00019178,2]
[396246694,1764874241018,-151.0,0.00019178,2]
[396246696,1764874241028,-151.0,0.00019178,2]
[396246698,1764874241037,-151.0,0.00019178,2]
[396246700,1764874241047,-151.0,0.00019178,2]
[396246702,1764874241056,-151.0,0.00019178,2]
[396246704,1764874241065,-274.393869,0.00019178,2]
[396246706,1764874241074,-639.124923,0.00019178,2]
[396246708,1764874241084,-639.124923,0.00019178,2]
[396246710,1764874241093,-151.0,0.00019178,2]
[396246712,1764874241102,-639.124923,0.00019178,2]
[396246715,1764874241116,-639.124923,0.00019178,2]
[396246716,1764874241125,-151.0,0.00019178,2]
[396246719,1764874241134,-639.124923,0.00019178,2]
[396246720,1764874241144,-151.0,0.00019178,2]
[396246722,1764874241154,-639.124923,0.00019178,2]
[396246724,1764874241163,-152.092223,0.00019178,2]
[396246727,1764874241174,-639.124923,0.00019178,2]
[396246729,1764874241183,-639.124923,0.00019178,2]
[396246731,1764874241198,-151.0,0.00019178,2]
[396246733,1764874241207,-151.0,0.00019178,2]
[396246735,1764874241216,-156.229026,0.00019178,2]
[396246737,1764874241226,-173.862967,0.00019178,2]
[396246739,1764874241236,-151.0,0.00019178,2]
[396246741,1764874241246,-151.0,0.00019178,2]
[396246743,1764874241256,-151.0,0.00019178,2]
[396246744,1764874241265,-151.0,0.00019178,2]
[396246746,1764874241277,-151.0,0.00019178,2]
[396246748,1764874241287,-229.845053,0.00019178,2]
[396246750,1764874241296,-3281.723842,0.00019178,2]
[396246752,1764874241305,-3281.723842,0.00019178,2]
[396246754,1764874241315,-3281.723842,0.00019178,2]
[396246756,1764874241325,-3281.723842,0.00019178,2]
[396246758,1764874241334,-151.0,0.00019178,2]
[396246760,1764874241345,-151.0,0.00019178,2]
[396246762,1764874241355,-151.0,0.00019178,2]
[396246764,1764874241364,-151.0,0.00019178,2]
[396246766,1764874241374,-151.0,0.00019178,2]
[396246768,1764874241383,-151.0,0.00019178,2]
[396246770,1764874241393,-151.0,0.00019178,2]
[396246772,1764874241403,-151.0,0.00019178,2]
[396246774,1764874241412,-151.0,0.00019178,2]
[396246776,1764874241421,-151.0,0.00019178,2]
[396246778,1764874241432,-151.0,0.00019178,2]
[396246780,1764874241442,-151.0,0.00019178,2]
[396246781,1764874241451,-151.0,0.00019178,2]
[396246784,1764874241462,-151.0,0.00019178,2]
[396246785,1764874241471,-269.65684,0.00019178,2]
[396246787,1764874241480,-526.56087369,0.00019186,2]
[396246790,1764874241493,-228.0,0.00019342,2]
[396246791,1764874241502,-322.6107,0.00019441,2]
[396246793,1764874241511,-500.0,0.00019441,2]
[396246796,1764874241521,-500.0,0.00019441,2]
[396246797,1764874241531,-695.39793187,0.00019441,2]
[396246799,1764874241540,-500.0,0.00019441,2]
[396246802,1764874241550,-500.0,0.00019441,2]
[396246803,1764874241559,-500.0,0.00019441,2]
[396246805,1764874241570,-500.0,0.00019441,2]
[396246808,1764874241580,-500.0,0.00019441,2]
[396246809,1764874241590,-500.0,0.00019441,2]
[396246811,1764874241598,-500.0,0.00019441,2]
[396246813,1764874241608,-500.0,0.00019441,2]
[396246815,1764874241617,-500.0,0.00019441,2]
[396246817,1764874241626,-151.0,0.00019441,2]
[396246819,1764874241635,-1000.0,0.00019441,2]
[396246821,1764874241645,-1000.0,0.00019441,2]
[396246823,1764874241654,-1000.0,0.00019441,2]
[396246825,1764874241663,-1000.0,0.00019441,2]
[396246827,1764874241672,-1000.0,0.00019441,2]
[396246829,1764874241682,-1000.0,0.00019441,2]
[396246831,1764874241692,-1000.0,0.00019441,2]
[396246833,1764874241701,-1000.0,0.00019441,2]
[396246835,1764874241711,-1000.0,0.00019441,2]
[396246838,1764874241720,-1000.0,0.00019441,2]
[396246840,1764874241729,-1000.0,0.00019441,2]
[396246842,1764874241740,-277.35679052,0.00019441,2]
[396246844,1764874241748,-599.60298507,0.00019441,2]
[396246846,1764874241758,-322.6107,0.00019441,2]
[396246848,1764874241767,-8402.00564156,0.00019456,2]
[396246850,1764874241776,-2563.22685364,0.00019462,2]
[396246852,1764874241786,-185.04,0.00019539,2]
[396246854,1764874241795,-302.46560032,0.00019787,2]
[396246855,1764874241804,-1000.0,0.0002,2]
[396246857,1764874241813,-159.04,0.000201,2]
[396246859,1764874241823,-1097.0,0.00020106,2]
[396246861,1764874241832,-403.19,0.00020187,2]
[396246863,1764874241841,-511.43685192,0.00020285,2]
[396246865,1764874241851,-200.0,0.00020517,2]
[396246867,1764874241859,-151.0,0.00020548,2]
[396246869,1764874241868,-151.0,0.00020548,2]
[396246871,1764874241877,-151.0,0.00020548,2]
[396246873,1764874241886,-228.0,0.00020608,2]
[396246875,1764874241895,-1000.0,0.00020622,2]
[396246877,1764874241904,-2000.0,0.000207,2]
[396246879,1764874241914,-1006.0,0.000208,2]
[396246881,1764874241923,-287.61899177,0.0002081,2]
[396246883,1764874241932,-150.0,0.00020813,2]
[396246885,1764874241942,-1971.06,0.00020938,2]
[396246887,1764874241951,-2983.61,0.00020938,2]
[396246889,1764874241960,-1860.84,0.00020938,2]
[396246891,1764874241970,-162.52615634,0.00021062,3]
[396246893,1764874241979,-1097.0,0.00021164,2]
[396246895,1764874241988,-8402.00564156,0.00021233,2]
[396246897,1764874241998,-2563.22685364,0.00021239,2]
[396246899,1764874242007,-299.99,0.00021757,7]
[396246901,1764874242017,-159.04,0.00021776,2]
[396246903,1764874242027,-228.0,0.00021873,2]
[396246905,1764874242036,-5000.0,0.00021918,2]
[396246907,1764874242045,-151.0,0.00021918,2]
[396246909,1764874242055,-151.0,0.00021918,2]
[396246911,1764874242065,-151.0,0.00021918,2]
[396246913,1764874242075,-151.0,0.00021918,2]
[396246915,1764874242084,-151.0,0.00021918,2]
[396246917,1764874242093,-151.0,0.00021918,2]
[396246919,1764874242104,-151.0,0.00021918,2]
[396246921,1764874242117,-185.04,0.00021981,2]
[396246923,1764874242126,-4880.09,0.00022,7]
[396246925,1764874242135,-4578.0,0.000221,2]
[396246927,1764874242145,-298.26089446,0.00022179,2]
[396246929,1764874242156,-1097.0,0.00022278,2]
[396246931,1764874242165,-298.48,0.000224,14]
[396246933,1764874242175,-1000.0,0.000224,2]
[396246935,1764874242185,-526.56087369,0.00022471,2]
[396246937,1764874242195,-1194.0,0.00022565,2]
[396246939,1764874242204,-909.0,0.00022565,2]
[396246941,1764874242214,-151.0,0.0002289,7]
[396246943,1764874242223,-29560.93,0.00022893,2]
[396246945,1764874242233,-8402.00564156,0.00023011,2]
[396246947,1764874242242,-2563.22685364,0.00023016,2]
[396246949,1764874242252,-228.0,0.00023139,2]
[396246951,1764874242261,-1000.0,0.00023199,2]
[396246953,1764874242270,-1000.0,0.000232,2]
[396246955,1764874242280,-159.04,0.00023451,2]
[396246957,1764874242288,-1097.0,0.00023451,2]
[396246959,1764874242298,-309.29654756,0.00023548,2]
[396246961,1764874242307,-162.52615634,0.00023643,7]
[396246963,1764874242316,-18379.0,0.00024,2]
[396246965,1764874242326,-1000.0,0.00024,2]
[396246967,1764874242336,-2000.0,0.000244,2]
[396246969,1764874242346,-4880.09,0.000244,7]
[396246971,1764874242355,-228.0,0.00024405,2]
[396246973,1764874242365,-511.43685192,0.0002457,2]
[396246975,1764874242374,-200.0,0.00024601,2]
[396246977,1764874242384,-200.0,0.00024602,2]
[396246979,1764874242394,-164.10134646,0.00024605,2]
[396246981,1764874242403,-1535.56,0.00024658,30]
[396246984,1764874242413,-285.45,0.00024658,2]
[396247008,1764874242625,-258.33927,0.00024658,2]
[396247010,1764874242636,-258.33927,0.00024658,2]
[396247013,1764874242645,-258.33927,0.00024658,2]
[396247016,1764874242654,-258.33927,0.00024658,2]
[396247018,1764874242663,-1097.0,0.00024685,2]
[396247020,1764874242672,-249.25554546,0.00024742,2]
[396247022,1764874242681,-157.85875692,0.00024742,2]
[396247024,1764874242691,-150.0,0.00024742,2]
[396247026,1764874242700,-151.92540351,0.00024742,2]
[396247027,1764874242710,-150.0,0.00024742,2]
[396247030,1764874242718,-150.0,0.00024742,2]
[396247033,1764874242727,-150.0,0.00024742,2]
[396247036,1764874242737,-150.0,0.00024742,2]
[396247038,1764874242746,-500.0,0.00024742,2]
[396247040,1764874242755,-150.0,0.00024742,2]
[396247042,1764874242765,-500.0,0.00024742,2]
[396247044,1764874242774,-150.0,0.00024742,2]
[396247046,1764874242783,-150.0,0.00024742,2]
[396247048,1764874242791,-266.46737986,0.00024742,2]
[396247050,1764874242800,-500.0,0.00024742,2]
[396247052,1764874242809,-500.0,0.00024742,2]
[396247054,1764874242819,-500.0,0.00024742,2]
[396247056,1764874242828,-150.0,0.00024742,2]
[396247058,1764874242837,-500.0,0.00024742,2]
[396247060,1764874242846,-500.0,0.00024742,2]
[396247062,1764874242855,-500.0,0.00024742,2]
[396247064,1764874242864,-500.0,0.00024742,2]
[396247066,1764874242872,-2905.8058416,0.00024767,2]
[396247068,1764874242882,-8402.00564156,0.00024789,2]
[396247069,1764874242891,-151.0,0.00024792,7]
[396247071,1764874242900,-151.0,0.00024792,7]
[396247074,1764874242909,-151.0,0.00024792,7]
[396247076,1764874242919,-162.332469,0.00024792,7]
[396247077,1764874242928,-2563.22685364,0.00024792,2]
[396247080,1764874242937,-151.0,0.00024797,7]
[396247081,1764874242947,-151.0,0.00024797,7]
[396247083,1764874242956,-152.110447,0.000248,7]
[396247085,1764874242966,-151.0,0.000248,7]
[396247087,1764874242975,-4084.913178,0.000248,7]
[396247089,1764874242984,-4084.913178,0.000248,7]
[396247091,1764874242994,-4084.913178,0.000248,7]
[396247094,1764874243003,-4084.913178,0.000248,7]
[396247096,1764874243013,-151.0,0.000248,7]
[396247098,1764874243023,-151.0,0.000248,7]
[396247099,1764874243032,-151.0,0.000248,7]
[396247101,1764874243041,-151.0,0.000248,7]
[396247103,1764874243051,-151.0,0.000248,7]
[396247105,1764874243061,-151.0,0.000248,7]
[396247107,1764874243070,-384968.499707,0.000248,3]
[396247109,1764874243079,-639.124923,0.000248,7]
[396247111,1764874243088,-639.124923,0.000248,7]
[396247113,1764874243098,-151.0,0.000248,7]
[396247115,1764874243108,-639.124923,0.000248,7]
[396247117,1764874243119,-639.124923,0.000248,7]
[396247119,1764874243128,-151.0,0.000248,7]
[396247121,1764874243137,-151.0,0.000248,7]
[396247123,1764874243147,-151.0,0.000248,7]
[396247125,1764874243157,-230.657249,0.000248,7]
[396247127,1764874243166,-1065.076229,0.000248,7]
[396247129,1764874243176,-1065.076229,0.000248,7]
[396247132,1764874243187,-151.0,0.000248,7]
[396247133,1764874243197,-1065.076229,0.000248,7]
[396247135,1764874243206,-151.0,0.000248,7]
[396247137,1764874243215,-1065.076229,0.000248,7]
[396247139,1764874243225,-3281.723842,0.000248,7]
[396247141,1764874243234,-3281.723842,0.000248,7]
[396247143,1764874243243,-3281.723842,0.000248,7]
[396247145,1764874243252,-258.33927,0.000248,7]
[396247147,1764874243262,-3281.723842,0.000248,7]
[396247149,1764874243271,-258.33927,0.000248,7]
[396247150,1764874243280,-258.33927,0.000248,7]
[396247151,1764874243290,-3281.723842,0.000248,7]
[396247152,1764874243299,-258.33927,0.000248,7]
[396247153,1764874243309,-3281.723842,0.000248,7]
[396247154,1764874243318,-151.0,0.000248,7]
[396247155,1764874243327,-258.33927,0.000248,7]
[396247156,1764874243337,-258.33927,0.000248,7]
[396247158,1764874243346,-3281.723842,0.000248,7]
[396247160,1764874243356,-151.0,0.000248,7]
[396247162,1764874243365,-3281.723842,0.000248,7]
[396247164,1764874243375,-258.33927,0.000248,7]
[396247166,1764874243385,-258.33927,0.000248,7]
[396247169,1764874243394,-151.0,0.000248,7]
[396247171,1764874243404,-151.0,0.000248,7]
[396247175,1764874243414,-160.743203,0.000248,7]
[396247176,1764874243423,-151.0,0.000248,7]
[396247179,1764874243432,-151.0,0.000248,7]
[396247181,1764874243442,-236.034596,0.000248,7]
[396247184,1764874243451,-151.0,0.000248,7]
[396247186,1764874243460,-151.0,0.000248,7]
[396247190,1764874243470,-299.87993,0.000248,7]
[396247192,1764874243479,-151.0,0.000248,7]
[396247195,1764874243489,-151.0,0.000248,7]
[396247197,1764874243497,-151.0,0.000248,7]
[396247198,1764874243507,-151.0,0.000248,7]
[396247200,1764874243516,-151.0,0.000248,7]
[396247203,1764874243525,-177.58964234,0.00024879,2]
[396247204,1764874243534,-150.0,0.00024879,2]
[396247206,1764874243544,-150.0,0.00024879,2]
[396247208,1764874243553,-150.0,0.00024879,2]
[396247210,1764874243562,-150.0,0.00024879,2]
[396247212,1764874243571,-500.0,0.00024879,2]
[396247214,1764874243580,-500.0,0.00024879,2]
[396247216,1764874243589,-150.0,0.00024879,2]
[396247218,1764874243598,-150.0,0.00024879,2]
[396247220,1764874243606,-500.0,0.00024879,2]
[396247222,1764874243615,-500.0,0.00024879,2]
[396247224,1764874243624,-500.0,0.00024879,2]
[396247226,1764874243633,-150.0,0.00024879,2]
[396247228,1764874243642,-500.0,0.00024879,2]
[396247230,1764874243651,-500.0,0.00024879,2]
[396247232,1764874243660,-500.0,0.00024879,2]
[396247234,1764874243669,-500.0,0.00024879,2]
[396247236,1764874243677,-300.0,0.00024899,10]
[396247238,1764874243686,-300.0,0.00024899,10]
[396247240,1764874243695,-300.0,0.00024899,10]
[396247242,1764874243704,-151.0,0.000249,7]
[396247244,1764874243713,-4084.913178,0.000249,7]
[396247246,1764874243722,-4084.913178,0.000249,7]
[396247248,1764874243730,-4084.913178,0.000249,7]
[396247250,1764874243739,-4084.913178,0.000249,7]
[396247252,1764874243748,-151.0,0.000249,7]
[396247254,1764874243757,-151.0,0.000249,7]
[396247256,1764874243766,-151.0,0.000249,7]
[396247258,1764874243774,-151.0,0.000249,7]
[396247260,1764874243783,-151.0,0.000249,7]
[396247262,1764874243792,-151.0,0.000249,7]
[396247264,1764874243801,-12981.6208974,0.000249,3]
[396247266,1764874243810,-639.124923,0.000249,7]
[396247268,1764874243819,-639.124923,0.000249,7]
[396247270,1764874243829,-151.0,0.000249,7]
[396247272,1764874243837,-639.124923,0.000249,7]
[396247274,1764874243846,-639.124923,0.000249,7]
[396247276,1764874243855,-151.0,0.000249,7]
[396247278,1764874243864,-151.0,0.000249,7]
[396247280,1764874243873,-1065.076229,0.000249,7]
[396247282,1764874243882,-1065.076229,0.000249,7]
[396247284,1764874243891,-151.0,0.000249,7]
[396247286,1764874243901,-1065.076229,0.000249,7]
[396247288,1764874243910,-191.686141,0.000249,7]
[396247290,1764874243919,-1065.076229,0.000249,7]
[396247292,1764874243929,-320.74051982,0.00024917,2]
[396247294,1764874243938,-500.65856416,0.00025,30]
[396247296,1764874243948,-150.0,0.00025016,2]
[396247298,1764874243957,-200.0,0.00025016,2]
[396247300,1764874243967,-500.0,0.00025016,2]
[396247302,1764874243976,-150.0,0.00025016,2]
[396247304,1764874243985,-200.0,0.00025016,2]
[396247306,1764874243994,-500.0,0.00025016,2]
[396247308,1764874244003,-500.0,0.00025016,2]
[396247310,1764874244012,-150.0,0.00025016,2]
[396247312,1764874244021,-200.0,0.00025016,2]
[396247314,1764874244031,-500.0,0.00025016,2]
[396247316,1764874244040,-470.0,0.00025016,2]
[396247318,1764874244054,-327.14547934,0.00025016,2]
[396247320,1764874244063,-166.68,0.00025126,2]
[396247323,1764874244073,-159.04,0.00025126,2]
[396247325,1764874244083,-150.0,0.00025153,2]
[396247326,1764874244094,-500.0,0.00025153,2]
[396247329,1764874244105,-150.0,0.00025153,2]
[396247331,1764874244120,-500.0,0.00025153,2]
[396247332,1764874244130,-174.0,0.00025153,2]
[396247335,1764874244140,-150.0,0.00025153,2]
[396247337,1764874244151,-500.0,0.00025153,2]
[396247339,1764874244162,-150.0,0.0002529,2]
[396247341,1764874244173,-500.0,0.0002529,2]
[396247343,1764874244183,-150.0,0.0002529,2]
[396247345,1764874244195,-500.0,0.0002529,2]
[396247347,1764874244205,-150.0,0.0002529,2]
[396247349,1764874244214,-500.0,0.0002529,2]
[396247350,1764874244225,-166.66,0.00025292,2]
[396247353,1764874244237,-250.0,0.00025427,2]
[396247355,1764874244247,-200.0,0.00025427,2]
[396247357,1764874244256,-250.0,0.00025427,2]
[396247359,1764874244265,-250.0,0.00025427,2]
[396247361,1764874244274,-260.0,0.00025427,2]
[396247363,1764874244283,-1194.0,0.00025565,2]
[396247365,1764874244292,-909.0,0.00025565,2]
[396247367,1764874244301,-228.0,0.00025671,2]
[396247369,1764874244311,-350.0,0.00025701,2]
[396247371,1764874244320,-526.56087369,0.00025757,2]
[396247373,1764874244329,-1000.0,0.00025777,2]
[396247375,1764874244338,-1097.0,0.00025984,2]
[396247377,1764874244346,-4880.09,0.00026,7]
[396247379,1764874244356,-166.66,0.00026076,2]
[396247380,1764874244365,-514.07,0.00026192,120]
[396247383,1764874244375,-162.52615634,0.00026224,10]
[396247384,1764874244384,-332.60791905,0.00026286,2]
[396247386,1764874244393,-8402.00564156,0.00026567,2]
[396247389,1764874244403,-2563.22685364,0.00026569,2]
[396247391,1764874244419,-361.53,0.00026621,2]
[396247393,1764874244437,-403.19,0.00026676,2]
[396247395,1764874244447,-166.66,0.00026859,2]
[396247397,1764874244456,-228.0,0.00026937,2]
[396247399,1764874244465,-746.0,0.00027,2]
[396247401,1764874244474,-170.08,0.00027123,2]
[396247403,1764874244484,-1097.0,0.00027352,2]
[396247405,1764874244493,-150.0,0.00027369,2]
[396247407,1764874244507,-500.0,0.00027397,14]
[396247409,1764874244518,-285.45,0.00027397,2]
[396247411,1764874244529,-151.0,0.00027397,7]
[396247413,1764874244541,-151.0,0.00027397,7]
[396247415,1764874244556,-151.00001,0.00027397,7]
[396247417,1764874244570,-164.302565,0.00027397,7]
[396247419,1764874244582,-1435.71,0.00027397,2]
[396247421,1764874244593,-151.0,0.00027397,7]
[396247423,1764874244602,-151.0,0.00027397,7]
[396247425,1764874244612,-151.0,0.00027397,7]
[396247427,1764874244621,-184.28285,0.00027397,7]
[396247429,1764874244631,-150.0,0.00027397,5]
[396247431,1764874244640,-166.66,0.00027642,2]
[396247433,1764874244650,-344.91441206,0.00027655,2]
[396247435,1764874244659,-5721.18,0.00027731,2]
[396247437,1764874244668,-250.0,0.00027945,5]
[396247439,1764874244678,-559.0,0.00028,2]
[396247441,1764874244687,-2000.0,0.000281,2]
[396247443,1764874244697,-4880.09,0.000281,7]
[396247445,1764874244706,-228.0,0.00028203,2]
[396247447,1764874244716,-8402.00564156,0.00028344,2]
[396247449,1764874244726,-2563.22685364,0.00028346,2]
[396247451,1764874244735,-1000.0,0.00028355,2]
[396247453,1764874244745,-350.0,0.00028493,5]
[396247455,1764874244755,-1194.0,0.00028565,2]
[396247457,1764874244764,-909.0,0.00028565,2]
[396247459,1764874244773,-1000.0,0.00028599,2]
[396247461,1764874244784,-1097.0,0.0002872,5]
[396247463,1764874244794,-150.0,0.000288,4]
[396247465,1764874244803,-150.0,0.000288,4]
[396247467,1764874244812,-150.0,0.000288,4]
[396247469,1764874244821,-150.0,0.000288,4]
[396247471,1764874244831,-150.0,0.000288,4]
[396247473,1764874244840,-150.0,0.000288,4]
[396247475,1764874244851,-150.0,0.000288,4]
[396247477,1764874244861,-242.20759846,0.000288,4]
[396247480,1764874244873,-150.0,0.000288,4]
[396247481,1764874244882,-150.0,0.000288,4]
[396247483,1764874244893,-152.51466941,0.000288,4]
[396247486,1764874244902,-150.0,0.000288,4]
[396247488,1764874244912,-511.43685192,0.00028855,2]
[396247490,1764874244921,-1000.0,0.00028873,2]
[396247492,1764874244931,-357.6762453,0.00029024,2]
[396247494,1764874244940,-547.09695169,0.00029041,5]
[396247495,1764874244949,-526.56087369,0.00029043,2]
[396247497,1764874244958,-150.0,0.00029046,7]
[396247499,1764874244967,-150.0,0.00029046,7]
[396247501,1764874244976,-514.07,0.00029102,120]
[396247503,1764874244985,-1000.0,0.00029147,2]
[396247505,1764874244994,-150.0,0.000292,7]
[396247507,1764874245003,-150.0,0.00029292,7]
[396247509,1764874245012,-150.0,0.00029292,7]
[396247511,1764874245021,-2983.61,0.00029313,2]
[396247513,1764874245031,-150.0,0.00029333,7]
[396247515,1764874245040,-150.0,0.00029333,7]
[396247517,1764874245050,-1000.0,0.00029421,2]
[396247519,1764874245059,-228.0,0.00029468,2]
[396247521,1764874245068,-150.0,0.00029538,7]
[396247523,1764874245077,-150.0,0.00029538,7]
[396247525,1764874245087,-150.0,0.000296,7]
[396247527,1764874245095,-150.0,0.000296,7]
[396247529,1764874245105,-150.0,0.000296,7]
[396247530,1764874245118,-1000.0,0.00029695,2]
[396247532,1764874245127,-1535.56,0.00029704,30]
[396247534,1764874245137,-150.0,0.00029785,7]
[396247537,1764874245146,-150.0,0.00029785,7]
[396247538,1764874245157,-150.0,0.00029867,7]
[396247541,1764874245166,-150.0,0.00029867,7]
[396247543,1764874245175,-1000.0,0.00029969,2]
[396247544,1764874245186,-300.0,0.00029999,2]
[396247545,1764874245195,-485.5654163,0.00029999,2]
[396247546,1764874245204,-1679.0,0.0003,2]
[396247547,1764874245214,-150.0,0.0003,7]
[396247548,1764874245223,-150.0,0.00030031,7]
[396247549,1764874245234,-150.0,0.00030031,7]
[396247551,1764874245244,-8402.00564156,0.00030122,2]
[396247553,1764874245254,-2563.22685364,0.00030123,2]
[396247555,1764874245264,-285.45,0.00030137,2]
[396247557,1764874245273,-150.0,0.00030137,4]
[396247559,1764874245283,-1097.0,0.00030156,5]
[396247561,1764874245292,-1000.0,0.00030243,2]
[396247563,1764874245301,-150.0,0.00030277,7]
[396247565,1764874245310,-150.0,0.00030277,7]
[396247567,1764874245320,-500.0,0.00030356,14]
[396247569,1764874245329,-500.0,0.00030356,14]
[396247571,1764874245338,-225.6698663,0.00030393,2]
[396247573,1764874245348,-150.0,0.000304,7]
[396247574,1764874245357,-150.0,0.000304,7]